fUST/lending_fUST_20260112
["ID","MTS","AMOUNT","RATE_DAILY","PERIOD"]
[401369856,1768161042622,-500.0,0.00023396,2]
[401369859,1768161042631,-151.0,0.00023396,2]
[401369861,1768161042641,-151.0,0.00023396,2]
[401369862,1768161042650,-151.0,0.00023396,2]
[401369864,1768161042659,-500.0,0.00023396,2]
[401369866,1768161042669,-151.0,0.00023396,2]
[401369868,1768161042678,-250.0,0.00023396,2]
[401369870,1768161042687,-500.0,0.00023396,2]
[401369873,1768161042698,-151.0,0.00023396,2]
[401369874,1768161042707,-151.0,0.00023396,2]
[401369876,1768161042716,-250.0,0.00023396,2]
[401369879,1768161042726,-500.0,0.00023396,2]
[401369881,1768161042735,-151.0,0.00023396,2]
[401369883,1768161042745,-151.0,0.00023396,2]
[401369885,1768161042754,-250.0,0.00023396,2]
[401369888,1768161042773,-500.0,0.00023396,2]
[401369890,1768161042784,-151.0,0.00023396,2]
[401369892,1768161042793,-151.0,0.00023396,2]
[401369894,1768161042803,-250.0,0.00023396,2]
[401369896,1768161042812,-500.0,0.00023396,2]
[401369898,1768161042824,-151.0,0.00023396,2]
[401369900,1768161042834,-151.0,0.00023396,2]
[401369902,1768161042844,-250.0,0.00023396,2]
[401369905,1768161042855,-500.0,0.00023396,2]
[401369907,1768161042864,-151.0,0.00023396,2]
[401369909,1768161042875,-252.94566259,0.00023396,2]
[401369911,1768161042885,-151.0,0.00023396,2]
[401369913,1768161042895,-151.0,0.00023396,2]
[401369915,1768161042905,-151.0,0.00023396,2]
[401369917,1768161042914,-151.0,0.00023396,2]
[401369919,1768161042924,-151.0,0.00023396,2]
[401369921,1768161042934,-30000.0,0.00023396,2]
[401369923,1768161042943,-151.0,0.00023396,2]
[401369925,1768161042953,-151.0,0.00023396,2]
[401369927,1768161042962,-151.0,0.00023396,2]
[401369929,1768161042972,-151.0,0.00023396,2]
[401369931,1768161042982,-2030.29667201,0.00023396,2]
[401369933,1768161042991,-151.0,0.00023396,2]
[401369935,1768161043000,-151.0,0.00023396,2]
[401369937,1768161043009,-151.0,0.00023396,2]
[401369939,1768161043018,-151.0,0.00023396,2]
[401369942,1768161043029,-241.8234162,0.00023396,2]
[401369944,1768161043039,-250.0,0.00023396,2]
[401369946,1768161043050,-250.0,0.00023396,2]
[401369948,1768161043059,-250.0,0.00023396,2]
[401369950,1768161043069,-250.0,0.00023396,2]
[401369952,1768161043079,-250.0,0.00023396,2]
[401369954,1768161043089,-250.0,0.00023396,2]
[401369956,1768161043099,-250.0,0.00023396,2]
[401369958,1768161043109,-547.1851626,0.0002344,71]
[401369960,1768161043119,-609.38512498,0.0002344,71]
[401369962,1768161043129,-1000.0,0.0002351,10]
[401369964,1768161043139,-1000.0,0.0002351,10]
[401369966,1768161043148,-1000.0,0.0002351,10]
[401369968,1768161043159,-2524.53827378,0.00023514,2]
[401369970,1768161043168,-611.55196731,0.00023517,12]
[401369972,1768161043178,-600.0,0.00023562,2]
[401369974,1768161043187,-547.1851626,0.00023574,79]
[401369976,1768161043197,-609.38512498,0.00023574,79]
[401369978,1768161043206,-832.73305676,0.00023584,2]
[401369980,1768161043216,-2524.53827378,0.00023592,2]
[401369982,1768161043225,-151.0,0.000236,7]
[401369984,1768161043235,-764.1,0.00023695,2]
[401369986,1768161043244,-547.1851626,0.00023708,86]
[401369988,1768161043254,-609.38512498,0.00023708,86]
[401369990,1768161043263,-151.0,0.000238,5]
[401369992,1768161043273,-151.0,0.000238,9]
[401369994,1768161043283,-167.64,0.000238,7]
[401369996,1768161043292,-32701.71,0.000238,2]
[401369998,1768161043302,-2524.53827378,0.00023927,2]
[401370000,1768161043311,-151.0,0.00023944,2]
[401370002,1768161043320,-151.0,0.00023944,2]
[401370004,1768161043330,-218.019088,0.00023944,2]
[401370006,1768161043340,-151.0,0.00023944,2]
[401370008,1768161043351,-151.0,0.00023944,2]
[401370010,1768161043360,-151.0,0.00023944,2]
[401370012,1768161043370,-151.0,0.00023944,2]
[401370014,1768161043381,-151.0,0.00023944,2]
[401370016,1768161043391,-151.0,0.00023944,2]
[401370019,1768161043405,-151.0,0.00023944,2]
[401370021,1768161043414,-151.0,0.00023944,2]
[401370022,1768161043423,-151.0,0.00023944,2]
[401370024,1768161043433,-177.021856,0.00023944,2]
[401370026,1768161043443,-151.0,0.00023944,2]
[401370028,1768161043454,-151.0,0.00023944,2]
[401370030,1768161043464,-151.0,0.00023944,2]
[401370032,1768161043476,-151.0,0.00023944,2]
[401370034,1768161043487,-151.0,0.00023944,2]
[401370036,1768161043497,-151.0,0.00023944,2]
[401370039,1768161043507,-296.59935167,0.00023944,2]
[401370041,1768161043518,-514.84070869,0.00023944,2]
[401370043,1768161043528,-31110.0,0.00023944,2]
[401370045,1768161043538,-152.205819,0.00023999,2]
[401370047,1768161043547,-151.0,0.00023999,2]
[401370049,1768161043556,-151.0,0.00023999,2]
[401370051,1768161043567,-151.0,0.00023999,2]
[401370053,1768161043576,-1638.845663,0.00023999,2]
[401370055,1768161043586,-1638.845663,0.00023999,2]
[401370057,1768161043596,-1638.845663,0.00023999,2]
[401370059,1768161043607,-1638.845663,0.00023999,2]
[401370062,1768161043620,-151.0,0.00023999,2]
[401370064,1768161043630,-151.0,0.00023999,2]
[401370066,1768161043640,-151.0,0.00023999,2]
[401370068,1768161043651,-311.85701,0.00023999,3]
[401370069,1768161043661,-323.39571937,0.00023999,3]
[401370072,1768161043672,-335.36136099,0.00023999,3]
[401370074,1768161043682,-347.76973134,0.00023999,3]
[401370076,1768161043692,-360.6372114,0.00023999,3]
[401370078,1768161043702,-373.98078822,0.00023999,3]
[401370080,1768161043712,-446.17736255,0.00023999,3]
[401370082,1768161043722,-2398.4119403,0.00023999,3]
[401370084,1768161043731,-2487.15318209,0.00023999,3]
[401370086,1768161043742,-2579.17784983,0.00023999,3]
[401370088,1768161043752,-2674.60743027,0.00023999,3]
[401370090,1768161043762,-2773.56790519,0.00023999,3]
[401370092,1768161043771,-2876.18991768,0.00023999,3]
[401370094,1768161043781,-2982.60894464,0.00023999,3]
[401370096,1768161043790,-3092.96547559,0.00023999,3]
[401370098,1768161043799,-3207.40519818,0.00023999,3]
[401370101,1768161043810,-3326.07919052,0.00023999,3]
[401370103,1768161043819,-3449.14412057,0.00023999,3]
[401370105,1768161043830,-3576.76245303,0.00023999,3]
[401370107,1768161043839,-3709.10266379,0.00023999,3]
[401370109,1768161043848,-3846.33946235,0.00023999,3]
[401370111,1768161043858,-3988.65402246,0.00023999,3]
[401370113,1768161043868,-154.1,0.00024,2]
[401370115,1768161043877,-935.4844481,0.00024062,2]
[401370117,1768161043887,-66102.1985254,0.00024062,2]
[401370119,1768161043896,-1792.5761958,0.00024062,2]
[401370133,1768161044022,-151.0,0.00024062,2]
[401370135,1768161044032,-151.0,0.00024062,2]
[401370137,1768161044041,-216.477355,0.00024062,2]
[401370139,1768161044051,-151.0,0.00024062,2]
[401370141,1768161044060,-216.477355,0.00024062,2]
[401370143,1768161044069,-216.477355,0.00024062,2]
[401370145,1768161044078,-216.477355,0.00024062,2]
[401370147,1768161044087,-151.0,0.00024062,2]
[401370149,1768161044097,-151.292503,0.00024062,2]
[401370151,1768161044106,-189.77985,0.00024062,2]
[401370153,1768161044115,-189.77985,0.00024062,2]
[401370155,1768161044124,-189.77985,0.00024062,2]
[401370157,1768161044133,-189.77985,0.00024062,2]
[401370159,1768161044143,-346.794,0.00024062,2]
[401370161,1768161044151,-346.794,0.00024062,2]
[401370163,1768161044161,-151.0,0.00024062,2]
[401370165,1768161044170,-346.794,0.00024062,2]
[401370167,1768161044179,-151.0,0.00024062,2]
[401370169,1768161044189,-346.794,0.00024062,2]
[401370171,1768161044199,-151.0,0.00024062,2]
[401370173,1768161044207,-151.0,0.00024062,2]
[401370175,1768161044217,-216.089114,0.00024062,2]
[401370176,1768161044226,-216.089114,0.00024062,2]
[401370178,1768161044235,-216.089114,0.00024062,2]
[401370181,1768161044245,-216.089114,0.00024062,2]
[401370183,1768161044255,-169.4627396,0.00024062,2]
[401370185,1768161044268,-2641.7276428,0.00024062,2]
[401370187,1768161044277,-433.98308473,0.0002411,2]
[401370189,1768161044287,-10962.07400005,0.00024142,2]
[401370191,1768161044296,-794.9882908,0.00024142,2]
[401370193,1768161044306,-3179.9531632,0.00024142,2]
[401370195,1768161044316,-8544.68369782,0.00024142,2]
[401370197,1768161044325,-1154.74290612,0.00024142,2]
[401370199,1768161044335,-707.35516567,0.00024142,2]
[401370201,1768161044344,-2829.42066267,0.00024142,2]
[401370203,1768161044353,-151.0,0.00024142,2]
[401370205,1768161044362,-151.0,0.00024142,2]
[401370207,1768161044371,-7154.8946172,0.00024142,2]
[401370209,1768161044381,-501.4967041,0.00024142,2]
[401370211,1768161044391,-2005.98681641,0.00024142,2]
[401370213,1768161044403,-4513.47033693,0.00024142,2]
[401370215,1768161044412,-151.0,0.00024142,2]
[401370217,1768161044422,-151.0,0.00024142,2]
[401370219,1768161044431,-6366.196491,0.00024148,2]
[401370221,1768161044442,-7817.82032114,0.000242,2]
[401370223,1768161044451,-3359.23,0.000242,14]
[401370225,1768161044460,-152.0,0.000242,3]
[401370227,1768161044470,-347.0,0.000242,3]
[401370229,1768161044479,-202.09107074,0.000242,3]
[401370231,1768161044488,-347.0,0.000242,3]
[401370233,1768161044498,-166.0,0.000242,3]
[401370235,1768161044507,-152.0,0.000242,3]
[401370237,1768161044517,-151.0,0.000242,3]
[401370239,1768161044529,-152.0,0.000242,3]
[401370241,1768161044540,-347.0,0.000242,3]
[401370243,1768161044551,-151.0,0.000242,3]
[401370245,1768161044560,-151.0,0.000242,3]
[401370248,1768161044570,-336.0,0.000242,3]
[401370250,1768161044580,-347.0,0.000242,3]
[401370251,1768161044590,-152.0,0.000242,3]
[401370253,1768161044600,-151.0,0.000242,3]
[401370256,1768161044610,-151.0,0.000242,3]
[401370257,1768161044619,-336.0,0.000242,3]
[401370259,1768161044629,-347.0,0.000242,3]
[401370262,1768161044639,-152.0,0.000242,3]
[401370264,1768161044649,-336.0,0.000242,3]
[401370266,1768161044658,-152.0,0.000242,3]
[401370268,1768161044667,-302.0,0.000242,3]
[401370269,1768161044677,-347.0,0.000242,3]
[401370272,1768161044686,-336.0,0.000242,3]
[401370274,1768161044696,-284.0,0.000242,3]
[401370275,1768161044705,-151.0,0.000242,3]
[401370277,1768161044715,-152.0,0.000242,3]
[401370280,1768161044726,-336.0,0.000242,3]
[401370281,1768161044736,-336.0,0.000242,3]
[401370283,1768161044745,-336.0,0.000242,3]
[401370285,1768161044755,-336.0,0.000242,3]
[401370287,1768161044763,-336.0,0.000242,3]
[401370289,1768161044773,-336.0,0.000242,3]
[401370291,1768161044781,-336.0,0.000242,3]
[401370293,1768161044791,-151.0,0.000242,2]
[401370295,1768161044800,-151.0,0.000242,2]
[401370297,1768161044810,-347.0,0.000242,3]
[401370299,1768161044820,-152.0,0.000242,3]
[401370301,1768161044830,-151.0,0.000242,2]
[401370303,1768161044839,-151.61039102,0.000242,2]
[401370305,1768161044849,-1023.0,0.00024206,2]
[401370307,1768161044858,-2123.0,0.00024278,2]
[401370309,1768161044868,-1206.01978264,0.00024279,6]
[401370311,1768161044877,-4819.25505143,0.00024279,6]
[401370312,1768161044887,-1507.88535844,0.00024279,6]
[401370313,1768161044897,-548.1037,0.00024279,6]
[401370314,1768161044907,-2192.41480001,0.00024279,6]
[401370315,1768161044916,-4932.93330002,0.00024279,6]
[401370316,1768161044925,-4618.97162449,0.00024301,2]
[401370317,1768161044934,-150.67,0.000244,2]
[401370318,1768161044948,-6025.50989232,0.00024464,6]
[401370319,1768161044958,-8760.88954084,0.00024464,6]
[401370320,1768161044968,-8023.94726565,0.00024489,2]
[401370321,1768161044978,-533.88981491,0.00024492,2]
[401370322,1768161044987,-32261.07,0.00024492,2]
[401370323,1768161044998,-151.0,0.000246,2]
[401370324,1768161045007,-286.469083,0.000246,2]
[401370325,1768161045017,-277.341841,0.000246,2]
[401370326,1768161045026,-160.204884,0.000246,2]
[401370327,1768161045035,-151.0,0.000246,2]
[401370328,1768161045045,-151.0,0.000246,2]
[401370329,1768161045054,-3685.53057,0.000246,2]
[401370330,1768161045064,-248.949419,0.000246,2]
[401370331,1768161045073,-3685.53057,0.000246,2]
[401370332,1768161045084,-248.949419,0.000246,2]
[401370334,1768161045093,-3685.53057,0.000246,2]
[401370335,1768161045103,-248.949419,0.000246,2]
[401370337,1768161045113,-163.313773,0.000246,2]
[401370339,1768161045122,-3685.53057,0.000246,2]
[401370341,1768161045132,-248.949419,0.000246,2]
[401370343,1768161045141,-167.435981,0.000246,2]
[401370345,1768161045151,-209.833157,0.000246,2]
[401370347,1768161045160,-1028.111698,0.000246,2]
[401370349,1768161045171,-1028.111698,0.000246,2]
[401370351,1768161045180,-1028.111698,0.000246,2]
[401370353,1768161045190,-1028.111698,0.000246,2]
[401370355,1768161045199,-151.0,0.000246,2]
[401370357,1768161045211,-151.0,0.000246,2]
[401370359,1768161045220,-151.0,0.000246,2]
[401370361,1768161045230,-151.0,0.000246,2]
[401370363,1768161045239,-227.107795,0.000246,2]
[401370365,1768161045250,-151.0,0.000246,2]
[401370367,1768161045260,-151.0,0.000246,2]
[401370369,1768161045270,-151.0,0.000246,2]
[401370371,1768161045279,-151.0,0.000246,2]
[401370373,1768161045288,-151.0,0.000246,2]
[401370375,1768161045298,-151.0,0.000246,2]
[401370377,1768161045307,-151.0,0.000246,2]
[401370379,1768161045317,-151.0,0.000246,2]
[401370382,1768161045326,-151.0,0.000246,2]
[401370384,1768161045336,-151.0,0.000246,2]
[401370386,1768161045345,-151.0,0.000246,2]
[401370388,1768161045354,-151.0,0.000246,2]
[401370390,1768161045364,-160.986137,0.000246,2]
[401370392,1768161045373,-151.0,0.000246,2]
[401370394,1768161045382,-1638.845663,0.000246,2]
[401370396,1768161045392,-1638.845663,0.000246,2]
[401370398,1768161045404,-1638.845663,0.000246,2]
[401370400,1768161045414,-1638.845663,0.000246,2]
[401370402,1768161045424,-151.0,0.000246,2]
[401370404,1768161045434,-151.0,0.000246,2]
[401370406,1768161045444,-160.32854,0.000246,2]
[401370408,1768161045453,-1047.51398317,0.00024611,6]
[401370410,1768161045463,-156825.46243198,0.0002465,2]
[401370412,1768161045473,-514.12757482,0.0002465,2]
[401370414,1768161045483,-151.0,0.0002465,2]
[401370416,1768161045492,-151.0,0.0002465,2]
[401370418,1768161045502,-466.694893,0.0002465,2]
[401370420,1768161045511,-466.694893,0.0002465,2]
[401370422,1768161045520,-466.694893,0.0002465,2]
[401370424,1768161045531,-466.694893,0.0002465,2]
[401370426,1768161045540,-151.0,0.0002465,2]
[401370428,1768161045548,-151.0,0.0002465,2]
[401370430,1768161045557,-162.23959,0.0002465,2]
[401370432,1768161045566,-629.317095,0.0002465,2]
[401370433,1768161045575,-629.317095,0.0002465,2]
[401370435,1768161045585,-629.317095,0.0002465,2]
[401370437,1768161045594,-629.317095,0.0002465,2]
[401370439,1768161045603,-221.941164,0.0002465,2]
[401370441,1768161045613,-221.941164,0.0002465,2]
[401370443,1768161045623,-221.941164,0.0002465,2]
[401370445,1768161045632,-221.941164,0.0002465,2]
[401370448,1768161045643,-151.0,0.0002465,2]
[401370450,1768161045652,-151.0,0.0002465,2]
[401370452,1768161045660,-216.477355,0.0002465,2]
[401370454,1768161045670,-181.667878,0.0002465,2]
[401370456,1768161045680,-216.477355,0.0002465,2]
[401370458,1768161045690,-216.477355,0.0002465,2]
[401370460,1768161045700,-216.477355,0.0002465,2]
[401370462,1768161045708,-158.288397,0.0002465,2]
[401370464,1768161045718,-189.77985,0.0002465,2]
[401370465,1768161045727,-189.77985,0.0002465,2]
[401370467,1768161045736,-189.77985,0.0002465,2]
[401370478,1768161045823,-189.77985,0.0002465,2]
[401370480,1768161045833,-346.794,0.0002465,2]
[401370482,1768161045842,-346.794,0.0002465,2]
[401370484,1768161045851,-151.0,0.0002465,2]
[401370486,1768161045860,-346.794,0.0002465,2]
[401370488,1768161045870,-151.0,0.0002465,2]
[401370489,1768161045881,-346.794,0.0002465,2]
[401370491,1768161045892,-151.0,0.0002465,2]
[401370493,1768161045902,-151.0,0.0002465,2]
[401370495,1768161045911,-216.089114,0.0002465,2]
[401370497,1768161045920,-216.089114,0.0002465,2]
[401370499,1768161045929,-216.089114,0.0002465,2]
[401370501,1768161045939,-216.089114,0.0002465,2]
[401370503,1768161045948,-151.0,0.0002465,2]
[401370505,1768161045958,-151.0,0.0002465,2]
[401370507,1768161045967,-380.0,0.00024658,2]
[401370509,1768161045976,-200.0,0.00024658,2]
[401370511,1768161045985,-2120.0,0.00024696,2]
[401370513,1768161045994,-152.655079,0.000247,7]
[401370515,1768161046003,-172.824008,0.000247,7]
[401370517,1768161046012,-151.0,0.000247,7]
[401370519,1768161046021,-151.0,0.000247,7]
[401370521,1768161046031,-151.0,0.000247,7]
[401370523,1768161046040,-160.002934,0.000247,7]
[401370525,1768161046050,-151.0,0.000247,7]
[401370527,1768161046059,-151.0,0.000247,7]
[401370529,1768161046068,-151.0,0.000247,7]
[401370531,1768161046076,-151.0,0.000247,7]
[401370533,1768161046086,-151.0,0.000247,7]
[401370535,1768161046095,-151.0,0.000247,7]
[401370537,1768161046105,-151.0,0.000247,7]
[401370539,1768161046115,-155.856993,0.000247,7]
[401370541,1768161046125,-306.783496,0.000247,7]
[401370543,1768161046134,-151.0,0.000247,7]
[401370545,1768161046143,-306.783496,0.000247,7]
[401370547,1768161046152,-151.0,0.000247,7]
[401370549,1768161046162,-151.0,0.000247,7]
[401370551,1768161046171,-321.052637,0.000247,7]
[401370553,1768161046180,-306.783496,0.000247,7]
[401370555,1768161046190,-151.0,0.000247,7]
[401370557,1768161046199,-321.052637,0.000247,7]
[401370559,1768161046208,-306.783496,0.000247,7]
[401370561,1768161046217,-321.052637,0.000247,7]
[401370563,1768161046226,-321.052637,0.000247,7]
[401370565,1768161046235,-151.0,0.000247,7]
[401370567,1768161046244,-219.547774,0.000247,7]
[401370569,1768161046254,-700.258706,0.000247,7]
[401370571,1768161046263,-700.258706,0.000247,7]
[401370573,1768161046273,-700.258706,0.000247,7]
[401370575,1768161046283,-700.258706,0.000247,7]
[401370577,1768161046292,-151.0,0.000247,7]
[401370579,1768161046301,-11773.83379711,0.000247,2]
[401370581,1768161046310,-107142.88,0.000247,3]
[401370583,1768161046321,-151.0,0.000247,7]
[401370585,1768161046330,-611.55196731,0.00024728,14]
[401370587,1768161046339,-5793.12960703,0.00024731,2]
[401370589,1768161046349,-281.9984182,0.00024767,14]
[401370591,1768161046358,-16832.68240312,0.00024774,2]
[401370592,1768161046367,-151.0,0.00024774,7]
[401370595,1768161046377,-151.0,0.000248,7]
[401370596,1768161046386,-151.0,0.000248,7]
[401370598,1768161046397,-154.1,0.000248,2]
[401370600,1768161046407,-306.783496,0.000248,7]
[401370602,1768161046416,-151.0,0.000248,7]
[401370604,1768161046426,-306.783496,0.000248,7]
[401370606,1768161046436,-151.0,0.000248,7]
[401370608,1768161046447,-151.0,0.000248,7]
[401370610,1768161046456,-321.052637,0.000248,7]
[401370613,1768161046469,-306.783496,0.000248,7]
[401370615,1768161046479,-163.811911,0.000248,7]
[401370617,1768161046488,-321.052637,0.000248,7]
[401370619,1768161046498,-306.783496,0.000248,7]
[401370620,1768161046508,-321.052637,0.000248,7]
[401370623,1768161046517,-321.052637,0.000248,7]
[401370625,1768161046527,-151.0,0.000248,7]
[401370627,1768161046538,-700.258706,0.000248,7]
[401370629,1768161046547,-700.258706,0.000248,7]
[401370631,1768161046556,-700.258706,0.000248,7]
[401370632,1768161046565,-700.258706,0.000248,7]
[401370634,1768161046575,-151.0,0.000248,7]
[401370636,1768161046584,-151.0,0.000248,7]
[401370638,1768161046593,-157.400999,0.000248,7]
[401370640,1768161046603,-151.0,0.000248,7]
[401370642,1768161046612,-151.0,0.000248,7]
[401370644,1768161046621,-151.0,0.000248,7]
[401370646,1768161046630,-151.0,0.000248,7]
[401370648,1768161046639,-151.0,0.000248,7]
[401370650,1768161046649,-151.0,0.000248,7]
[401370652,1768161046658,-151.0,0.000248,7]
[401370655,1768161046675,-151.0,0.000248,7]
[401370657,1768161046685,-161.096358,0.000248,7]
[401370659,1768161046695,-151.0,0.000248,7]
[401370660,1768161046704,-151.0,0.000248,7]
[401370663,1768161046714,-200.586455,0.000248,7]
[401370665,1768161046725,-466.694893,0.000248,7]
[401370667,1768161046735,-466.694893,0.000248,7]
[401370669,1768161046744,-466.694893,0.000248,7]
[401370671,1768161046754,-466.694893,0.000248,7]
[401370673,1768161046763,-151.0,0.000248,7]
[401370675,1768161046772,-151.0,0.000248,7]
[401370677,1768161046783,-629.317095,0.000248,7]
[401370679,1768161046792,-629.317095,0.000248,7]
[401370681,1768161046801,-629.317095,0.000248,7]
[401370683,1768161046810,-629.317095,0.000248,7]
[401370685,1768161046819,-151.0,0.000248,7]
[401370686,1768161046828,-151.0,0.000248,7]
[401370688,1768161046837,-358874.761176,0.000248,2]
[401370690,1768161046846,-3985.48773877,0.000248,2]
[401370692,1768161046856,-151.0,0.000248,7]
[401370694,1768161046865,-207.617131,0.000248,7]
[401370696,1768161046874,-151.0,0.000248,7]
[401370698,1768161046885,-2263.25436862,0.0002487,2]
[401370700,1768161046894,-11044.3428327,0.00024897,2]
[401370702,1768161046903,-151.0,0.00024897,7]
[401370704,1768161046913,-3685.53057,0.00024897,7]
[401370706,1768161046923,-248.949419,0.00024897,7]
[401370708,1768161046932,-3685.53057,0.00024897,7]
[401370710,1768161046941,-248.949419,0.00024897,7]
[401370712,1768161046950,-3685.53057,0.00024897,7]
[401370714,1768161046959,-248.949419,0.00024897,7]
[401370716,1768161046968,-3685.53057,0.00024897,7]
[401370718,1768161046978,-248.949419,0.00024897,7]
[401370720,1768161046988,-1028.111698,0.00024897,7]
[401370722,1768161046997,-1028.111698,0.00024897,7]
[401370724,1768161047006,-1028.111698,0.00024897,7]
[401370726,1768161047015,-1028.111698,0.00024897,7]
[401370728,1768161047024,-246.586503,0.00024897,7]
[401370729,1768161047033,-151.0,0.00024897,7]
[401370731,1768161047042,-151.0,0.00024897,7]
[401370733,1768161047051,-151.0,0.00024897,7]
[401370735,1768161047060,-91.98832627,0.00024897,7]
[401370737,1768161047461,-456.24061387,0.00015617,2]
[401370738,1768161047474,-574.75499537,0.00015617,2]
[401370739,1768161047772,-454.355,0.00015617,2]
[401370743,1768161047862,-1700.0,0.00010299,2]
[401370744,1768161047874,-319.22150867,0.00010299,2]
[401370787,1768161121979,155.0,5.98e-05,2]
[401370791,1768161604362,152.52,5e-05,2]
[401370793,1768161865881,500.0,0.000267,120]
[401370794,1768161866544,500.0,0.000267,120]
[401370795,1768161867326,500.0,0.000267,120]
[401370796,1768161868121,500.0,0.000267,120]
[401370797,1768161869296,500.0,0.000267,120]
[401370798,1768161870074,500.0,0.000267,120]
[401370799,1768161870834,500.0,0.000267,120]
[401370800,1768161871583,500.0,0.000267,120]
[401370801,1768161872393,500.0,0.000267,120]
[401370802,1768161873133,500.0,0.000267,120]
[401370803,1768161873883,500.0,0.000267,120]
[401370804,1768161874642,500.0,0.000267,120]
[401370805,1768161875389,500.0,0.000267,120]
[401370806,1768161876176,500.0,0.000267,120]
[401370807,1768161876947,500.0,0.000267,120]
[401370808,1768161877716,500.0,0.000267,120]
[401370809,1768161878480,500.0,0.000267,120]
[401370810,1768161879350,500.0,0.000267,120]
[401370811,1768161880170,500.0,0.000267,120]
[401370812,1768161880959,500.0,0.000267,120]
[401370813,1768161881771,500.0,0.000267,120]
[401370814,1768161882558,500.0,0.000267,120]
[401370815,1768161883307,500.0,0.000267,120]
[401370816,1768161884056,500.0,0.000267,120]
[401370817,1768161884833,500.0,0.000267,120]
[401370818,1768161885619,500.0,0.000267,120]
[401370819,1768161886383,500.0,0.000267,120]
[401370820,1768161887143,500.0,0.000267,120]
[401370821,1768161887899,500.0,0.000267,120]
[401370822,1768161888650,500.0,0.000267,120]
[401370823,1768161889402,500.0,0.000267,120]
[401370824,1768161890163,500.0,0.000267,120]
[401370825,1768161890963,500.0,0.000267,120]
[401370826,1768161891786,500.0,0.000267,120]
[401370827,1768161892718,500.0,0.000267,120]
[401370828,1768161893539,500.0,0.000267,120]
[401370829,1768161894315,500.0,0.000267,120]
[401370830,1768161895061,500.0,0.000267,120]
[401370831,1768161895814,500.0,0.000267,120]
[401370832,1768161896585,500.0,0.000267,120]
[401370833,1768161897720,500.0,0.000267,120]
[401370834,1768161898654,500.0,0.000267,120]
[401370835,1768161899452,639.14,0.000267,120]
[401370838,1768161966177,500.0,0.000267,120]
[401370854,1768162202913,154.05532899,0.00023615,120]
[401370856,1768162204608,152.43,5e-05,2]
[401370882,1768162232014,-152.52,0.0001,2]
[401370883,1768162232025,-560.0,0.0001,2]
[401370884,1768162232036,-300.19149986,0.00010074,2]
[401370885,1768162232046,-300.0,0.00010402,2]
[401370886,1768162232057,-300.0,0.00010402,2]
[401370887,1768162232066,-1200.0,0.00010402,2]
[401370888,1768162232076,-513.89767683,0.00010403,2]
[401370889,1768162232085,-604.38954264,0.00010403,2]